fUSD/lending_fUSD_20260425
["ID","MTS","AMOUNT","RATE_DAILY","PERIOD"]
[421127149,1777117842753,-151.0,0.0001,2]
[421127150,1777117842763,-254.74409564,0.0001,2]
[421127151,1777117842773,-151.0,0.0001,2]
[421127152,1777117842783,-151.0,0.0001,2]
[421127153,1777117842793,-151.0,0.0001,2]
[421127154,1777117842803,-151.0,0.0001,2]
[421127155,1777117842813,-151.0,0.0001,2]
[421127156,1777117842823,-151.0,0.0001,2]
[421127157,1777117842833,-151.0,0.0001,2]
[421127158,1777117842843,-151.0,0.0001,2]
[421127159,1777117842854,-151.0,0.0001,2]
[421127160,1777117842864,-151.0,0.0001,2]
[421127161,1777117842874,-151.0,0.0001,2]
[421127162,1777117842885,-151.0,0.0001,2]
[421127163,1777117842895,-151.0,0.0001,2]
[421127164,1777117842905,-231.79420006,0.0001,2]
[421127165,1777117842915,-151.0,0.0001,2]
[421127166,1777117842926,-165.49301793,0.0001,2]
[421127167,1777117842936,-151.0,0.0001,2]
[421127168,1777117842946,-174.915748,0.0001,2]
[421127169,1777117842956,-174.915748,0.0001,2]
[421127170,1777117842966,-174.915748,0.0001,2]
[421127171,1777117842992,-174.915748,0.0001,2]
[421127172,1777117843004,-966.68645,0.0001,2]
[421127173,1777117843015,-2000.0,0.0001,2]
[421127174,1777117843026,-398.93313722,0.00010001,2]
[421127175,1777117843036,-234.90755566,0.00010001,2]
[421127176,1777117843047,-1000.0,0.00010001,2]
[421127177,1777117843057,-1000.0,0.00010001,2]
[421127178,1777117843068,-1000.0,0.00010001,2]
[421127180,1777117843078,-572.09413596,0.00010001,2]
[421127181,1777117843089,-1000.93491423,0.00010001,2]
[421127182,1777117843099,-1000.0,0.00010001,2]
[421127183,1777117843109,-1000.0,0.00010001,2]
[421127184,1777117843120,-1000.0,0.00010001,2]
[421127185,1777117843130,-1000.0,0.00010001,2]
[421127186,1777117843141,-306.02396571,0.00010001,2]
[421127187,1777117843151,-1000.0,0.00010001,2]
[421127188,1777117843161,-1000.0,0.00010001,2]
[421127189,1777117843171,-1000.0,0.00010001,2]
[421127190,1777117843181,-462.86202736,0.00010001,2]
[421127191,1777117843191,-500.23114314,0.00010001,2]
[421127192,1777117843202,-171.64747028,0.00010001,2]
[421127193,1777117843213,-318.47664326,0.00010001,2]
[421127194,1777117843223,-1000.0,0.00010001,2]
[421127195,1777117843235,-874.01,0.0001004,2]
[421127196,1777117843246,-255.0,0.00010052,2]
[421127198,1777117843258,-5530.0,0.000101,3]
[421127199,1777117843270,-151.0,0.000101,2]
[421127200,1777117843281,-1207.0,0.000101,2]
[421127201,1777117843292,-150.0,0.0001012,2]
[421127202,1777117843304,-638.38,0.00010189,2]
[421127203,1777117843315,-5530.0,0.000102,5]
[421127204,1777117843326,-2000.0,0.000102,2]
[421127205,1777117843337,-761.93,0.00010219,2]
[421127206,1777117843348,-350.0,0.00010249,4]
[421127207,1777117843358,-9192.172944,0.00010291,2]
[421127208,1777117843369,-1919.599024,0.00010291,2]
[421127209,1777117843379,-12476.04385,0.00010291,2]
[421127210,1777117843390,-874.01,0.00010314,2]
[421127211,1777117843400,-151.584864,0.00010362,2]
[421127212,1777117843411,-200.0,0.00010375,2]
[421127213,1777117843421,-1428.38747117,0.00010375,2]
[421127214,1777117843431,-209.40437684,0.00010375,2]
[421127215,1777117843442,-187.78006525,0.00010375,2]
[421127216,1777117843452,-2000.0,0.000104,2]
[421127217,1777117843463,-10000.0,0.00010454,2]
[421127218,1777117843474,-700.0,0.00010454,2]
[421127219,1777117843484,-322.536416,0.00010454,2]
[421127220,1777117843494,-322.536416,0.00010454,2]
[421127221,1777117843504,-322.536416,0.00010454,2]
[421127222,1777117843515,-322.53642,0.00010454,2]
[421127223,1777117843525,-1532.0,0.00010467,2]
[421127224,1777117843535,-1532.0,0.00010467,2]
[421127225,1777117843545,-152.0,0.00010467,2]
[421127226,1777117843555,-1532.0,0.00010467,2]
[421127227,1777117843564,-152.0,0.00010467,2]
[421127228,1777117843575,-1532.0,0.00010467,2]
[421127229,1777117843585,-152.0,0.00010467,2]
[421127230,1777117843595,-167.0,0.00010467,2]
[421127231,1777117843604,-1532.0,0.00010467,2]
[421127232,1777117843615,-152.0,0.00010467,2]
[421127233,1777117843624,-167.0,0.00010467,2]
[421127234,1777117843634,-1532.0,0.00010467,2]
[421127235,1777117843645,-152.0,0.00010467,2]
[421127236,1777117843655,-167.49940589,0.00010467,2]
[421127237,1777117843665,-1532.0,0.00010467,2]
[421127238,1777117843675,-152.0,0.00010467,2]
[421127239,1777117843685,-1532.0,0.00010467,2]
[421127240,1777117843695,-163.91787475,0.00010467,2]
[421127241,1777117843705,-1532.0,0.00010467,2]
[421127242,1777117843716,-1532.0,0.00010467,2]
[421127243,1777117843726,-1532.0,0.00010467,2]
[421127244,1777117843736,-1532.0,0.00010467,2]
[421127245,1777117843746,-1532.0,0.00010467,2]
[421127246,1777117843755,-1532.0,0.00010467,2]
[421127247,1777117843765,-1532.0,0.00010467,2]
[421127248,1777117843775,-1532.0,0.00010467,2]
[421127249,1777117843785,-1532.0,0.00010467,2]
[421127250,1777117843795,-1532.0,0.00010467,2]
[421127251,1777117843804,-1532.0,0.00010467,2]
[421127253,1777117843814,-151.0,0.00010467,2]
[421127254,1777117843823,-151.0,0.00010467,2]
[421127255,1777117843833,-151.0,0.00010467,2]
[421127256,1777117843843,-151.0,0.00010467,2]
[421127257,1777117843852,-241.26935684,0.00010467,2]
[421127258,1777117843862,-1543.7258936,0.00010467,2]
[421127259,1777117843871,-151.0,0.00010467,2]
[421127260,1777117843881,-174.915748,0.00010467,2]
[421127261,1777117843892,-174.915748,0.00010467,2]
[421127262,1777117843901,-174.915748,0.00010467,2]
[421127263,1777117843911,-174.915748,0.00010467,2]
[421127264,1777117843921,-48799.83,0.00010468,2]
[421127265,1777117843931,-9423.63703819,0.00010486,2]
[421127266,1777117843941,-151.0,0.00010486,2]
[421127267,1777117843953,-151.0,0.00010496,2]
[421127268,1777117843964,-1091.91703714,0.00010499,3]
[421127269,1777117843974,-1093.91752428,0.00010499,3]
[421127270,1777117843984,-1000.0,0.00010499,2]
[421127271,1777117843995,-1000.0,0.00010499,2]
[421127272,1777117844005,-1000.0,0.00010499,2]
[421127274,1777117844016,-1000.0,0.00010499,2]
[421127275,1777117844027,-1000.0,0.00010499,2]
[421127276,1777117844037,-1000.0,0.00010499,2]
[421127277,1777117844046,-1000.0,0.00010499,2]
[421127278,1777117844057,-1000.0,0.00010499,2]
[421127279,1777117844069,-1000.0,0.00010499,2]
[421127280,1777117844079,-661.66802301,0.00010499,2]
[421127281,1777117844090,-600.0,0.000105,2]
[421127282,1777117844101,-234.24735877,0.00010533,2]
[421127283,1777117844111,-555.55277778,0.00010548,2]
[421127284,1777117844121,-1500.0,0.00010548,2]
[421127285,1777117844132,-502.17428254,0.00010548,2]
[421127286,1777117844142,-1500.0,0.00010548,2]
[421127287,1777117844152,-1500.0,0.00010548,2]
[421127288,1777117844163,-978.75627883,0.00010548,2]
[421127289,1777117844173,-1500.0,0.00010548,2]
[421127290,1777117844184,-1540.17297121,0.00010548,2]
[421127291,1777117844194,-1500.0,0.00010548,2]
[421127292,1777117844204,-638.84319376,0.00010548,2]
[421127293,1777117844214,-1621.04537997,0.00010548,2]
[421127294,1777117844224,-1500.0,0.00010548,2]
[421127295,1777117844234,-19413.02267407,0.00010554,2]
[421127296,1777117844245,-68319.75,0.00010574,2]
[421127297,1777117844255,-241.468319,0.00010574,2]
[421127298,1777117844265,-174.915748,0.00010574,2]
[421127299,1777117844275,-174.915748,0.00010574,2]
[421127300,1777117844286,-174.915748,0.00010574,2]
[421127301,1777117844296,-174.915748,0.00010574,2]
[421127302,1777117844306,-874.01,0.00010588,2]
[421127303,1777117844316,-1093.91752428,0.00010593,3]
[421127304,1777117844326,-1093.83820704,0.00010593,3]
[421127305,1777117844337,-515.07127389,0.000106,2]
[421127306,1777117844347,-313.0,0.000106,2]
[421127307,1777117844357,-307.0,0.000106,2]
[421127308,1777117844367,-677.97387395,0.000106,2]
[421127309,1777117844377,-3745.42317237,0.000106,2]
[421127310,1777117844387,-1548.12767831,0.000106,2]
[421127311,1777117844397,-2000.0,0.000106,2]
[421127312,1777117844407,-202.9244454,0.000106,2]
[421127313,1777117844417,-1000.0,0.000106,2]
[421127314,1777117844428,-150.0,0.00010673,2]
[421127315,1777117844438,-966.68645,0.0001069,2]
[421127316,1777117844449,-151.0,0.00010697,2]
[421127317,1777117844460,-1000.0,0.00010699,2]
[421127318,1777117844470,-1000.0,0.00010699,2]
[421127319,1777117844481,-1000.0,0.00010699,2]
[421127320,1777117844491,-1000.0,0.00010699,2]
[421127321,1777117844502,-1000.0,0.00010699,2]
[421127322,1777117844513,-1000.0,0.00010699,2]
[421127323,1777117844523,-1000.0,0.00010699,2]
[421127324,1777117844534,-1000.0,0.00010699,2]
[421127325,1777117844544,-1000.0,0.00010699,2]
[421127326,1777117844555,-1000.0,0.00010699,2]
[421127327,1777117844565,-1000.0,0.00010699,2]
[421127328,1777117844575,-1000.0,0.00010699,2]
[421127329,1777117844586,-1000.0,0.00010699,2]
[421127330,1777117844596,-1000.0,0.00010699,2]
[421127331,1777117844607,-1000.0,0.00010699,2]
[421127332,1777117844616,-1000.0,0.00010699,2]
[421127333,1777117844627,-1000.0,0.00010699,2]
[421127334,1777117844637,-1000.0,0.00010699,2]
[421127335,1777117844647,-1000.0,0.00010699,2]
[421127336,1777117844658,-1000.0,0.00010699,2]
[421127337,1777117844668,-1087.74620711,0.00010699,3]
[421127338,1777117844679,-154.642236,0.00010699,2]
[421127339,1777117844689,-1093.83820703,0.00010699,3]
[421127340,1777117844700,-919516.09550694,0.000107,2]
[421127341,1777117844711,-178221.63949704,0.000107,2]
[421127342,1777117844721,-210936.13885719,0.000107,2]
[421127343,1777117844732,-529.70726909,0.000107,2]
[421127344,1777117844743,-807.30180039,0.000107,2]
[421127345,1777117844753,-3000.01,0.000107,2]
[421127346,1777117844764,-8102.18,0.000107,2]
[421127347,1777117844774,-4986.75,0.000107,2]
[421127348,1777117844785,-5362.98,0.000107,2]
[421127349,1777117844795,-162.24807931,0.00010721,2]
[421127350,1777117844806,-160.0,0.00010721,2]
[421127351,1777117844817,-350.0,0.00010729,4]
[421127352,1777117844828,-1812.4465901,0.00010782,2]
[421127353,1777117844839,-780.1649869,0.00010782,2]
[421127354,1777117844849,-2000.0,0.000108,2]
[421127355,1777117844859,-350.0,0.00010822,2]
[421127356,1777117844870,-179.152083,0.00010837,2]
[421127357,1777117844881,-874.01,0.00010862,2]
[421127358,1777117844891,-2351.0,0.00010874,2]
[421127359,1777117844901,-1400.0,0.000109,3]
[421127360,1777117844911,-200.0,0.00010923,2]
[421127361,1777117844922,-1481.23780761,0.00010923,2]
[421127362,1777117844933,-217.15233878,0.00010923,2]
[421127363,1777117844943,-329.6165989,0.00010923,2]
[421127364,1777117844954,-200.0,0.00010959,2]
[421127365,1777117844964,-200.0,0.00010959,2]
[421127366,1777117844975,-200.0,0.00010959,2]
[421127367,1777117844985,-200.0,0.00010959,2]
[421127368,1777117844996,-1200.0,0.00010959,2]
[421127369,1777117845006,-1200.0,0.00010959,2]
[421127370,1777117845016,-1200.0,0.00010959,2]
[421127371,1777117845027,-1200.0,0.00010959,2]
[421127372,1777117845037,-1200.0,0.00010959,2]
[421127373,1777117845047,-810.34550878,0.00010959,2]
[421127374,1777117845057,-1200.0,0.00010959,2]
[421127375,1777117845067,-1200.0,0.00010959,2]
[421127376,1777117845078,-1200.0,0.00010959,2]
[421127377,1777117845088,-1200.0,0.00010959,2]
[421127378,1777117845098,-1200.0,0.00010959,2]
[421127379,1777117845108,-1200.0,0.00010959,2]
[421127380,1777117845422,-1200.0,0.00010959,2]
[421127381,1777117845432,-1225.10960202,0.00010959,2]
[421127382,1777117845442,-196.156884,0.00010959,2]
[421127383,1777117845452,-196.156884,0.00010959,2]
[421127384,1777117845461,-196.156884,0.00010959,2]
[421127385,1777117845471,-196.156884,0.00010959,2]
[421127386,1777117845480,-196.156884,0.00010959,2]
[421127387,1777117845490,-196.156884,0.00010959,2]
[421127388,1777117845500,-196.156884,0.00010959,2]
[421127389,1777117845509,-196.156884,0.00010959,2]
[421127390,1777117845519,-196.156884,0.00010959,2]
[421127391,1777117845529,-196.156884,0.00010959,2]
[421127392,1777117845539,-196.156884,0.00010959,2]
[421127393,1777117845550,-196.156884,0.00010959,2]
[421127394,1777117845560,-196.156884,0.00010959,2]
[421127395,1777117845570,-196.156884,0.00010959,2]
[421127396,1777117845580,-196.156884,0.00010959,2]
[421127397,1777117845590,-196.156884,0.00010959,2]
[421127398,1777117845600,-196.156884,0.00010959,2]
[421127399,1777117845610,-196.156884,0.00010959,2]
[421127400,1777117845619,-196.156884,0.00010959,2]
[421127401,1777117845629,-196.15688,0.00010959,2]
[421127402,1777117845639,-300.0,0.00010962,2]
[421127403,1777117845649,-300.0,0.00010962,2]
[421127404,1777117845659,-666.0,0.00010962,2]
[421127405,1777117845669,-300.0,0.00010962,2]
[421127406,1777117845678,-666.0,0.00010962,2]
[421127407,1777117845688,-300.0,0.00010962,2]
[421127408,1777117845698,-300.0,0.00010962,2]
[421127409,1777117845708,-666.0,0.00010962,2]
[421127410,1777117845718,-46295.0681361,0.00010963,2]
[421127411,1777117845728,-706.3334488,0.00010963,2]
[421127412,1777117845738,-17242.8578014,0.00010963,2]
[421127413,1777117845748,-2103.1940852,0.00010963,2]
[421127414,1777117845758,-233.1,0.00010989,2]
[421127415,1777117845768,-395.5,0.00010989,2]
[421127416,1777117845777,-1609.97,0.00010989,2]
[421127417,1777117845787,-2000.0,0.00010989,2]
[421127418,1777117845797,-739.45,0.00010989,2]
[421127419,1777117845806,-150.0,0.00010989,2]
[421127420,1777117845816,-2000.0,0.00010989,2]
[421127421,1777117845826,-394.06,0.00010989,2]
[421127422,1777117845836,-246.62,0.00010989,2]
[421127423,1777117845846,-300.0,0.00010998,2]
[421127424,1777117845856,-300.0,0.00010998,2]
[421127425,1777117845866,-666.0,0.00010998,2]
[421127426,1777117845876,-300.0,0.00010998,2]
[421127427,1777117845887,-666.0,0.00010998,2]
[421127428,1777117845897,-300.0,0.00010998,2]
[421127429,1777117845907,-666.0,0.00010998,2]
[421127430,1777117845917,-2000.0,0.00011,2]
[421127431,1777117845927,-219.86,0.00011008,2]
[421127432,1777117845937,-433.0,0.00011057,2]
[421127433,1777117845947,-404.4114979,0.00011073,2]
[421127434,1777117845957,-174.0783384,0.00011073,2]
[421127435,1777117845967,-1048.0,0.00011073,2]
[421127436,1777117845977,-3531.0,0.00011073,2]
[421127437,1777117845987,-150.0,0.00011073,2]
[421127438,1777117845996,-1266.0,0.00011073,2]
[421127439,1777117846006,-150.0,0.00011073,2]
[421127440,1777117846016,-150.17,0.00011073,2]
[421127441,1777117846026,-3781.0,0.00011073,2]
[421127442,1777117846035,-240.344,0.00011073,2]
[421127443,1777117846045,-250.092,0.00011073,2]
[421127444,1777117846054,-2475.0,0.00011073,2]
[421127445,1777117846064,-250.0,0.00011073,2]
[421127446,1777117846073,-156.347,0.00011073,2]
[421127447,1777117846083,-555.55277778,0.00011096,2]
[421127448,1777117846093,-2025.38917287,0.00011096,2]
[421127449,1777117846102,-2000.0,0.00011096,2]
[421127450,1777117846112,-2000.0,0.00011096,2]
[421127451,1777117846122,-781.78201386,0.00011096,2]
[421127452,1777117846132,-2000.0,0.00011096,2]
[421127453,1777117846141,-1362.51616083,0.00011096,2]
[421127454,1777117846151,-300.0,0.00011098,2]
[421127455,1777117846160,-300.0,0.00011098,2]
[421127456,1777117846169,-666.0,0.00011098,2]
[421127457,1777117846179,-300.0,0.00011098,2]
[421127458,1777117846189,-666.0,0.00011098,2]
[421127459,1777117846199,-300.0,0.00011098,2]
[421127460,1777117846208,-300.0,0.00011098,2]
[421127461,1777117846218,-174.68086836,0.00011098,2]
[421127462,1777117846227,-25925.85131519,0.00011099,2]
[421127463,1777117846238,-25925.85131514,0.00011099,2]
[421127464,1777117846247,-25925.85131514,0.00011099,2]
[421127465,1777117846256,-25925.85131514,0.00011099,2]
[421127466,1777117846266,-25925.85131514,0.00011099,2]
[421127467,1777117846277,-25925.85131514,0.00011099,2]
[421127468,1777117846286,-25925.85131514,0.00011099,2]
[421127469,1777117846298,-25925.85131514,0.00011099,2]
[421127470,1777117846308,-300.0,0.0001113,2]
[421127471,1777117846318,-874.01,0.00011136,2]
[421127472,1777117846328,-300.0,0.0001115,2]
[421127473,1777117846339,-666.0,0.0001115,2]
[421127474,1777117846349,-25925.85131514,0.00011165,2]
[421127475,1777117846360,-178.85,0.00011205,2]
[421127476,1777117846371,-1018.87,0.0001122,2]
[421127477,1777117846383,-1691.39,0.0001122,2]
[421127478,1777117846394,-329.45,0.0001122,2]
[421127479,1777117846404,-275.46,0.0001122,2]
[421127480,1777117846414,-250.0,0.00011221,2]
[421127481,1777117846424,-677.97387393,0.0001125,2]
[421127482,1777117846434,-3745.42317237,0.0001125,2]
[421127483,1777117846444,-1548.12767831,0.0001125,2]
[421127484,1777117846454,-4779.929931,0.00011271,2]
[421127485,1777117846464,-998.191492,0.00011271,2]
[421127486,1777117846474,-4325.028534,0.00011271,2]
[421127487,1777117846484,-385.8,0.00011278,2]
[421127488,1777117846494,-244.98,0.00011278,2]
[421127489,1777117846504,-49782.97,0.00011281,2]
[421127490,1777117846514,-9999.99,0.00011281,2]
[421127491,1777117846523,-2960.24,0.00011281,2]
[421127492,1777117846533,-299.99,0.00011281,2]
[421127493,1777117846543,-9999.99,0.00011281,2]
[421127494,1777117846553,-9999.99,0.00011281,2]
[421127495,1777117846562,-4999.99,0.00011281,2]
[421127496,1777117846572,-20047.69,0.00011281,2]
[421127497,1777117846581,-999.99,0.00011281,2]
[421127498,1777117846591,-4445.06,0.00011281,2]
[421127499,1777117846601,-150.99,0.00011281,2]
[421127500,1777117846611,-6693.25,0.00011281,2]
[421127501,1777117846620,-499.99,0.00011281,2]
[421127502,1777117846631,-10329.8259672,0.00011294,2]
[421127503,1777117846641,-157.6042955,0.00011294,2]
[421127504,1777117846651,-3847.4016226,0.00011294,2]
[421127505,1777117846660,-469.286033,0.00011294,2]
[421127506,1777117846670,-310.33521517,0.00011386,2]
[421127507,1777117846679,-300.0,0.00011386,2]
[421127508,1777117846689,-200.0,0.000114,4]
[421127509,1777117846699,-874.01072732,0.0001141,2]
[421127510,1777117846709,-25925.85131514,0.00011425,2]
[421127511,1777117846718,-1536.04360649,0.00011471,2]
[421127512,1777117846728,-225.18697532,0.00011471,2]
[421127513,1777117846738,-3000.01,0.000115,2]
[421127514,1777117846747,-8102.18,0.000115,2]
[421127515,1777117846758,-4986.75,0.000115,2]
[421127516,1777117846767,-5362.98,0.000115,2]
[421127517,1777117846778,-200.0,0.000115,4]
[421127518,1777117846788,-300.0,0.00011525,2]
[421127519,1777117846798,-666.0,0.00011525,2]
[421127520,1777117846808,-200.0,0.000116,4]
[421127521,1777117846818,-340.13497463,0.00011636,2]
[421127522,1777117846828,-312.16655594,0.00011643,2]
[421127523,1777117846837,-555.55277778,0.00011644,2]
[421127524,1777117846850,-672.05054162,0.00011644,2]
[421127525,1777117846860,-934.60259387,0.00011644,2]
[421127526,1777117846870,-833.98167673,0.00011644,2]
[421127527,1777117846880,-200.0,0.000117,4]
[421127528,1777117846890,-260.9488396,0.00011768,2]
[421127529,1777117846900,-471.73075,0.00011796,2]
[421127530,1777117846910,-927.0,0.000118,4]
[421127531,1777117846919,-300.0,0.00011881,2]
[421127532,1777117846930,-666.0,0.00011881,2]
[421127533,1777117846939,-25000.0,0.00011882,2]
[421127534,1777117846950,-300.0,0.0001189,2]
[421127535,1777117846960,-6221.49881552,0.00011891,2]
[421127541,1777117847993,-669.57770617,0.000107,2]
[421127542,1777117848007,-287.68959405,0.000107,2]
[421127543,1777117848251,-500.0,9.479e-05,2]
[421127544,1777117848261,-500.0,9.479e-05,2]
[421127545,1777117848270,-500.0,9.479e-05,2]
[421127546,1777117848280,-500.0,9.479e-05,2]
[421127547,1777117848289,-160.0,9.8e-05,2]
[421127548,1777117848298,-402.717514,9.8e-05,2]
[421127549,1777117848309,-216.87485027,0.000107,2]
[421127550,1777117848318,-193.965,0.00011073,2]
[421127551,1777117848327,-16242.06395806,0.00011891,2]
[421127552,1777117848447,-500.0,9.479e-05,2]
[421127553,1777117848457,-2536.43722642,0.00011891,2]
[421127554,1777117848467,-300.0,0.00011899,2]
[421127555,1777117848476,-25000.0,0.000119,2]
[421127556,1777117848486,-19830.85656988,0.000119,2]
[421127557,1777117848496,-677.97387393,0.000119,2]
[421127558,1777117848506,-3745.42317237,0.000119,2]
[421127559,1777117848516,-1548.12767831,0.000119,2]
[421127560,1777117848525,-202.92444539,0.000119,2]
[421127561,1777117848535,-3292.0,0.00011961,2]
[421127562,1777117848546,-700.0,0.00011972,2]
[421127563,1777117848556,-966.68645,0.0001199,2]
[421127564,1777117848566,-1101.2917872,0.00011999,3]
[421127565,1777117848576,-251278.24773741,0.00012,2]
[421127566,1777117848899,-417.0,9.479e-05,2]
[421127567,1777117848912,-83.0,9.479e-05,2]
[421127568,1777117848922,-500.0,9.479e-05,2]
[421127569,1777117848933,-500.0,9.479e-05,2]
[421127570,1777117848943,-645.435029,9.8e-05,2]
[421127571,1777117848953,-151.0,0.0001,2]
[421127572,1777117848963,-208.35726141,0.0001,2]
[421127573,1777117848973,-151.0,0.00010001,2]
[421127574,1777117848982,-312.53589212,0.00010001,2]
[421127575,1777117848992,-823.74037,0.0001029,2]
[421127576,1777117849001,-428.344992,0.0001127,2]
[421127577,1777117849011,-79781.55599835,0.00012,2]
[421127578,1777117849024,-464.95445559,0.00012,2]
[421127579,1777117849492,-444.093,0.00011073,2]
[421127580,1777117849503,-215.372,0.00011073,2]
[421127581,1777117849513,-250.0,0.00011073,2]
[421127582,1777117849523,-7209.1185744,0.00012,2]
[421127583,1777118302230,-1200.0,9.478e-05,2]
[421127584,1777118401209,1200.0,9.478e-05,2]
[421127585,1777118402461,500.0,9.479e-05,2]
[421127586,1777118402832,500.0,9.479e-05,2]
[421127587,1777118404242,500.0,9.479e-05,2]
[421127588,1777118404329,500.0,9.479e-05,2]
[421127589,1777118404410,500.0,9.479e-05,2]
[421127590,1777118404538,309.3572974,9.146e-05,2]
[421127591,1777118404585,500.0,9.479e-05,2]
[421127592,1777118404669,428.21423266,9.479e-05,2]
[421127593,1777118415845,-300.0,9.479e-05,2]
[421127594,1777118415878,-250.0,9.479e-05,2]
[421127595,1777118415908,-500.0,9.479e-05,2]
[421127596,1777118415937,-500.0,9.479e-05,2]
[421127597,1777118415967,-500.0,9.479e-05,2]
[421127598,1777118415996,-500.0,9.479e-05,2]
[421127599,1777118416026,-186.731666,9.479e-05,2]
[421127600,1777118416056,-578.20924308,9.479e-05,2]
[421127601,1777118421769,3370.12818184,8.7e-05,2]
[421127602,1777118421794,10000.01,8.7e-05,2]
[421127603,1777118421820,10000.01,8.7e-05,2]
[421127604,1777118421846,10000.01,8.7e-05,2]
[421127605,1777118421871,10000.01,8.7e-05,2]
[421127606,1777118421897,10000.01,8.7e-05,2]
[421127607,1777118421923,10000.01,8.7e-05,2]
[421127608,1777118421949,10000.01,8.7e-05,2]
[421127609,1777118421974,10000.01,8.7e-05,2]
[421127610,1777118421998,10000.01,8.7e-05,2]
[421127611,1777118446063,-500.0,8.699e-05,2]
[421127612,1777118446216,-451.73096694,8.699e-05,2]
[421127613,1777118446247,-500.0,8.699e-05,2]
[421127614,1777118446276,-465.60852877,8.699e-05,2]
[421127615,1777118446305,-500.0,8.699e-05,2]
[421127616,1777118446458,-222.85989954,8.699e-05,2]
[421127617,1777118446486,-321.07499723,8.699e-05,2]
[421127618,1777118446812,-500.0,8.699e-05,2]
[421127619,1777118446906,-4463.70639991,8.7e-05,2]
[421127620,1777118446938,-222.85989954,8.7e-05,2]
[421127621,1777118446953,-321.07499723,8.7e-05,2]
[421127622,1777118446972,-500.0,8.7e-05,2]
[421127623,1777118447077,-500.0,8.699e-05,2]
[421127624,1777118447087,-500.0,8.699e-05,2]
[421127625,1777118447098,-500.0,8.699e-05,2]
[421127626,1777118447108,-500.0,8.699e-05,2]
[421127627,1777118447118,-500.0,8.699e-05,2]
[421127628,1777118447128,-500.0,8.699e-05,2]
[421127629,1777118447137,-500.0,8.699e-05,2]
[421127630,1777118447147,-500.0,8.699e-05,2]
[421127631,1777118447158,-500.0,8.699e-05,2]
[421127632,1777118447168,-3412.14020646,8.7e-05,2]
[421127633,1777118449336,-500.0,8.699e-05,2]
[421127634,1777118449370,-500.0,8.699e-05,2]
[421127635,1777118449405,-500.0,8.699e-05,2]
[421127636,1777118449648,-500.0,8.699e-05,2]
[421127637,1777118449682,-500.0,8.699e-05,2]
[421127638,1777118449717,-500.0,8.699e-05,2]
[421127639,1777118449751,-500.0,8.699e-05,2]
[421127640,1777118449784,-500.0,8.699e-05,2]
[421127641,1777118449818,-500.0,8.699e-05,2]
[421127642,1777118449852,-500.0,8.699e-05,2]
[421127643,1777118449907,-500.0,8.699e-05,2]
[421127644,1777118449942,-500.0,8.699e-05,2]
[421127645,1777118449976,-500.0,8.699e-05,2]
[421127646,1777118450011,-500.0,8.699e-05,2]
[421127647,1777118450045,-500.0,8.699e-05,2]
[421127648,1777118450534,-500.0,8.699e-05,2]
[421127649,1777118450574,-500.0,8.699e-05,2]
[421127650,1777118450614,-500.0,8.699e-05,2]
[421127651,1777118450651,-500.0,8.699e-05,2]
[421127652,1777118450688,-500.0,8.699e-05,2]
[421127653,1777118450764,-500.0,8.699e-05,2]
[421127654,1777118450800,-500.0,8.699e-05,2]
[421127655,1777118450837,-500.0,8.699e-05,2]
[421127656,1777118450872,-500.0,8.699e-05,2]
[421127657,1777118450909,-500.0,8.699e-05,2]